Cogmind - Beta 9.6 @@@ ROGUE MODE // 2020.07.31 @ 21:56:24 Player: Alexbot Result: Self-destructed Performance ------------- Evolutions (3) 1500 Regions Visited (5) 1000 Robots Destroyed (2) 10 Value Destroyed (20) 20 Prototype IDs (0) 0 Alien Tech Used (0) 0 Bonus (470) 470 TOTAL SCORE: 3000 Bonus ------- Pacifist 470 Cogmind --------- Core Integrity 166/700 Matter 260/300 Energy 99/100 System Corruption 2% Temperature Cool (0) Movement Core (50) Location -7/Factory Parts ------- > --- POWER (2) -------- (None) > --- PROPULSION (6) --- (None) > --- UTILITY (3) ------ Enhanced Optical Array > --- WEAPON (2) ------- (None) > --- INVENTORY (4) ---- Medium Storage Unit Drone Bay (2/2) Drone Bay (0/2) Peak State ------------ > --- POWER ------------ (None) > --- PROPULSION ------- Flight Unit > --- UTILITY ---------- Terrain Scanner System Shield Drone Bay > --- WEAPON ----------- Light Assault Rifle > --- INVENTORY -------- Medium Storage Unit Drone Bay Mining Claw [Rating: 11] Favorites ----------- Power Ion Engine Engine Ion Engine Propulsion Flight Unit Leg Aluminum Leg Hover Unit Improved Hover Unit Flight Unit Flight Unit Utility Enhanced Optical Array Device Terrain Scanner Processor Enhanced Optical Array Hackware System Shield Weapon Light Assault Rifle Energy Gun Small Laser Ballistic Gun Light Assault Rifle Slashing Weapon Mining Claw Build | -11 -10 -9 -8 -8 -7 ------- Run | Scr Mat Mat Mat Sto Fac Slots Evolved 6 | . . 2 2 . 2 Power 1 | . . 1 . . . Propulsion 4 | . . 1 1 . 2 Utility 1 | . . . 1 . . Weapon . | . . . . . . Parts Attached 10 | . 1 . 3 2 4 Power . | . . . . . . Engine . | . . . . . . Core . | . . . . . . Reactor . | . . . . . . Propulsion 3 | . 1 . 1 . 1 Treads . | . . . . . . Leg . | . . . . . . Wheel . | . . . . . . Hover 1 | . . . . . 1 Flight 2 | . 1 . 1 . . Utility 5 | . . . 1 2 2 Device 3 | . . . . 2 1 Storage . | . . . . . . Processor 1 | . . . . . 1 Hackware 1 | . . . 1 . . Protection . | . . . . . . Artifact . | . . . . . . Weapon 2 | . . . 1 . 1 Energy Gun 1 | . . . 1 . . Energy Cannon . | . . . . . . Ballistic Gun . | . . . . . . Ballistic Cannon . | . . . . . . Launcher . | . . . . . . Special Weapon . | . . . . . . Impact Weapon . | . . . . . . Slashing Weapon 1 | . . . . . 1 Piercing Weapon . | . . . . . . Special Melee Weapon . | . . . . . . Unidentified Prototypes . | . . . . . . Parts Lost 9 | . . . 3 4 2 Power . | . . . . . . Propulsion 3 | . . . 1 1 1 Utility 2 | . . . . 2 . Weapon 4 | . . . 2 1 1 Highest Loss Streak 4 | . . . 2 4 1 Average Slot Usage (%) 22 | . 32 33 32 28 8 Flight 5 | . 4 11 13 6 . Device 1 | . . . . 7 . Processor 1 | . . . . . 4 Hackware 2 | . . . 2 7 . Energy Gun 4 | . 14 11 8 . . Ballistic Gun 6 | . 14 11 9 8 . Naked Turns 12 | . . . . 8 4 Heaviest Build 11 | 11 2 2 3 7 2 Greatest Support 20 | 20 4 4 8 4 8 Greatest Overweight (x) 2 | . . . . 2 . Average Overweight (x) . | . . . . . . Largest Inventory Capacity 4 | . 4 4 4 4 4 Average Capacity 4 | . 4 4 4 4 4 Most Carried 4 | . 4 4 4 4 4 Average Carried 3 | . 3 4 3 3 3 Final Capacity 6 | 6 4 4 4 4 4 Final Carried 6 | 6 4 4 3 4 3 Class Distribution -------------------- 100% | Mutant Dominant Class ---------------- Mutant | -10/Materials Mutant | -9/Materials Mutant | -8/Materials Mutant | -8/Storage Mutant | -7/Factory Resources | -11 -10 -9 -8 -8 -7 ----------- Run | Scr Mat Mat Mat Sto Fac Matter Collected 198 | 188 . . 10 . . Remotely . | . . . . . . Salvage Created 25 | . . . 25 . . Parts 2 | . . . 2 . . Haulers Intercepted . | . . . . . . Recyclers Shooed . | . . . . . . Parts Field Recycled . | . . . . . . Retrieved Matter . | . . . . . . Parts Self-Destructed . | . . . . . . Prevented . | . . . . . . Kills | -11 -10 -9 -8 -8 -7 ------- Run | Scr Mat Mat Mat Sto Fac Combat Hostiles Destroyed 2 | . . . 2 . . Guns 2 | . . . 2 . . Classes Destroyed 1 | . . . 1 . . Swarmer 2 | . . . 2 . . Best Kill Streak 2 | . . . 2 . . Combat Bots Only 2 | . . . 2 . . Max Kills in Single Turn 1 | . . . 1 . . Gunslinging . | . . . . . . Exploded . | . . . . . . Melee . | . . . . . . Uniques/NPCs Destroyed . | . . . . . . Combat | -11 -10 -9 -8 -8 -7 -------- Run | Scr Mat Mat Mat Sto Fac Damage Taken 1075 | . 58 . 121 261 635 Core 705 | . 12 . 22 137 534 Absorbed by Shields . | . . . . . . Core Remaining (%) 91 | 100 95 100 . 71 . Volleys Fired 2 | . . . 2 . . Largest 2 | . . . 2 . . Hottest 60 | . . . 60 . . Shots Fired 4 | . . . 4 . . Gun 4 | . . . 4 . . Cannon . | . . . . . . Launcher . | . . . . . . Special . | . . . . . . Kinetic 2 | . . . 2 . . Thermal 2 | . . . 2 . . Explosive . | . . . . . . Electromagnetic . | . . . . . . Robot Hit Streak 1 | . . . 1 . . Robot Miss Streak 1 | . . . 1 . . Penetration Max . | . . . . . . Secondary Targets . | . . . . . . Shots Hit Robots 2 | . . . 2 . . Core Hits 3 | . . . 2 . 1 Critical Hits . | . . . . . . Critical Kills . | . . . . . . Critical Parts Destroyed . | . . . . . . Melee Attacks 1 | . . . . . 1 Impact . | . . . . . . Slashing 1 | . . . . . 1 Piercing . | . . . . . . Sneak Attacks . | . . . . . . Combat Hostiles . | . . . . . . Follow-up Attacks . | . . . . . . Damage Inflicted 44 | . . . 19 . 25 Guns 19 | . . . 19 . . Cannons . | . . . . . . Explosions . | . . . . . . Melee . | . . . . . . Ramming 25 | . . . . . 25 Kinetic 9 | . . . 9 . . Thermal 10 | . . . 10 . . Explosive . | . . . . . . Electromagnetic . | . . . . . . Impact . | . . . . . . Slashing . | . . . . . . Piercing . | . . . . . . Highest Corruption 2 | . . . . . 2 Average Corruption 1 | . . . . . 1 Corruption Purged . | . . . . . . Effects 2 | . . . . . 2 Message Errors 1 | . . . . . 1 Data Loss (minor) 1 | . . . . . 1 Overload Shots . | . . . . . . Overflow Damage . | . . . . . . Projectiles . | . . . . . . Explosions . | . . . . . . Melee . | . . . . . . Knockbacks . | . . . . . . Impact . | . . . . . . Kinetic . | . . . . . . Secondary . | . . . . . . Self-Inflicted Damage 11 | . . . . . 11 Shots . | . . . . . . Rammed 4 | . . . . . 4 Targets Rammed 4 | . . . . . 4 Kicked . | . . . . . . Crushed . | . . . . . . Highest Temperature . | . . . . . . Average Temperature . | . . . . . . Received Heat Transfer 204 | . 30 . 18 36 120 Siege Activations . | . . . . . . Robots Corrupted . | . . . . . . Combat Hostiles . | . . . . . . Parts Fried . | . . . . . . Impact Corruptions . | . . . . . . Robots Melted . | . . . . . . Combat Hostiles . | . . . . . . Parts Melted . | . . . . . . Heat Transferred 25 | . . . 25 . . Parts Sabotaged . | . . . . . . Parts Stolen . | . . . . . . Parts Stripped . | . . . . . . Power Chain Reactions . | . . . . . . Missiles Intercepted . | . . . . . . Alert | -11 -10 -9 -8 -8 -7 ------- Run | Scr Mat Mat Mat Sto Fac Peak Influence 119 | . 60 34 119 83 83 Average Influence 55 | . 29 26 70 60 61 Maximum Alert Level . | . . . . . . Low Security (%) 100 | . 100 100 100 100 100 Level 1 . | . . . . . . Level 2 . | . . . . . . Level 3 . | . . . . . . Level 4 . | . . . . . . Level 5 . | . . . . . . High Security . | . . . . . . Max Security . | . . . . . . Squads Dispatched 6 | . 2 . 1 1 2 Investigation 1 | . . . . 1 . Extermination . | . . . . . . Reinforcement 5 | . 2 . 1 . 2 Assault . | . . . . . . Garrison . | . . . . . . Intercept . | . . . . . . Construction Impeded . | . . . . . . Haulers Reinforced . | . . . . . . Stealth | -11 -10 -9 -8 -8 -7 --------- Run | Scr Mat Mat Mat Sto Fac Distress Signals 2 | . 1 . . . 1 Communications Jammed . | . . . . . . Distress Signals . | . . . . . . Times Spotted 51 | . 10 . 14 10 17 Peak Tracking Total 11 | . 7 . 8 11 11 Tactical Retreats 7 | . 1 . 2 1 3 Traps | -11 -10 -9 -8 -8 -7 ------- Run | Scr Mat Mat Mat Sto Fac Traps Triggered 2 | . . . . 2 . Indirectly . | . . . . . . Trap Hack Attempts . | . . . . . . Triggered . | . . . . . . Disarmed . | . . . . . . Reprogrammed . | . . . . . . Reused . | . . . . . . Traps Extracted . | . . . . . . Installed . | . . . . . . Triggered . | . . . . . . Machines | -11 -10 -9 -8 -8 -7 ---------- Run | Scr Mat Mat Mat Sto Fac Machines Disabled . | . . . . . . Max in Single Turn . | . . . . . . Machines Sabotaged . | . . . . . . Garrisons Compromised . | . . . . . . Overloaded Fab Kills . | . . . . . . Fab Network Shutdowns . | . . . . . . Hacking | -11 -10 -9 -8 -8 -7 --------- Run | Scr Mat Mat Mat Sto Fac Machines Accessed 7 | . . 1 2 3 1 Terminals 7 | . . 1 2 3 1 Fabricators . | . . . . . . Repair Stations . | . . . . . . Recycling Units . | . . . . . . Scanalyzers . | . . . . . . Garrison Access . | . . . . . . Total Hacks 14 | . . 3 5 4 2 Successful 4 | . . 1 . 2 1 Failed 10 | . . 2 5 2 1 Catastrophic 2 | . . . 2 . . Database Lockouts . | . . . . . . Manual 11 | . . 3 5 3 . Terminals 14 | . . 3 5 4 2 Fabricators . | . . . . . . Repair Stations . | . . . . . . Recycling Units . | . . . . . . Scanalyzers . | . . . . . . Garrison Access . | . . . . . . Terminal Hacks 4 | . . 1 . 2 1 Open Door 1 | . . . . 1 . Level Access Points 2 | . . 1 . . 1 Branch Access Points 1 | . . . . 1 . Fabricator Hacks . | . . . . . . Repair Station Hacks . | . . . . . . Recycling Unit Hacks . | . . . . . . Scanalyzer . | . . . . . . Garrison Access Hacks . | . . . . . . Unauthorized Hacks . | . . . . . . Terminals . | . . . . . . Fabricators . | . . . . . . Repair Stations . | . . . . . . Recycling Units . | . . . . . . Scanalyzers . | . . . . . . Garrison Access . | . . . . . . Data Cores Recovered . | . . . . . . Used . | . . . . . . Hacking Detections 5 | . . 1 2 1 1 Full Trace Events 3 | . . . 2 1 . Feedback Events . | . . . . . . Feedback Blocked . | . . . . . . Robot Schematics Acquired . | . . . . . . Robots Built . | . . . . . . Matter . | . . . . . . Time . | . . . . . . Total Robot Build Rating . | . . . . . . Part Schematics Acquired . | . . . . . . Parts Built . | . . . . . . Matter . | . . . . . . Time . | . . . . . . Total Part Build Rating . | . . . . . . Parts Repaired . | . . . . . . Time . | . . . . . . Parts Recycled . | . . . . . . Recycled Matter . | . . . . . . Retrieved Matter . | . . . . . . Retrieved Components . | . . . . . . Parts Scanalyzed . | . . . . . . Part Schematics Acquired . | . . . . . . Parts Damaged . | . . . . . . Bothacking | -11 -10 -9 -8 -8 -7 ------------ Run | Scr Mat Mat Mat Sto Fac Used RIF Installer . | . . . . . . Robots Hacked . | . . . . . . Non-combat . | . . . . . . Combat . | . . . . . . Robot Hacks Applied . | . . . . . . Relay Couplers Released . | . . . . . . Robots Rewired . | . . . . . . Allies Hacked . | . . . . . . Hacks Repelled . | . . . . . . Allies | -11 -10 -9 -8 -8 -7 -------- Run | Scr Mat Mat Mat Sto Fac Total Allies . | . . . . . . Largest Group . | . . . . . . Highest-Rated Group . | . . . . . . Highest-Rated Ally . | . . . . . . Total Orders 3 | . . . . 2 1 EXPLORE 1 | . . . . . 1 RETURN 2 | . . . . 2 . Ally Attacks . | . . . . . . Total Damage . | . . . . . . Kills . | . . . . . . Allies Corrupted . | . . . . . . Allies Melted . | . . . . . . Intel | -11 -10 -9 -8 -8 -7 ------- Run | Scr Mat Mat Mat Sto Fac Robot Analysis Total . | . . . . . . Derelict Logs Recovered . | . . . . . . Drone Launches 5 | . . . . 3 2 Drone Recoveries 3 | . . . . 3 . Exploration | -11 -10 -9 -8 -8 -7 ------------- Run | Scr Mat Mat Mat Sto Fac Turns Passed 440 | . 66 32 83 105 154 Spaces Moved 791 | 1 127 80 166 139 278 Core 430 | . 66 . 8 82 274 Treads . | . . . . . . Legs 1 | 1 . . . . . Wheels . | . . . . . . Hover 4 | . . . . . 4 Flight 356 | . 61 80 158 57 . Fastest Speed 37 | 120 40 40 37 40 50 Average Speed 45 | 120 45 40 39 46 50 Slowest Speed 150 | 120 50 40 50 150 60 Overloaded Moves . | . . . . . . Propulsion Burnouts . | . . . . . . Robots Hopped 3 | . 3 . . . . Cave-ins Triggered . | . . . . . . Exploration Rate (%) 22 | 2 35 16 27 37 15 Regions Visited 5 Branch Regions 1 Pre-discovered Areas . | . . . . . . Known Exits Taken 1 | . . 1 . . . Unknown Exits Taken 4 | 1 1 . 1 1 . Scrap Searched . | . . . . . . Spaces Dug . | . . . . . . Terrain Destroyed . | . . . . . . Melee . | . . . . . . Projectile . | . . . . . . AOE . | . . . . . . Actions | -11 -10 -9 -8 -8 -7 --------- Run | Scr Mat Mat Mat Sto Fac Total 860 | . 134 79 178 179 290 Wait 10 | . . . 8 . 2 Move 780 | . 120 79 165 138 278 Hop 3 | . 3 . . . . Pick Up 5 | . 3 . . 2 . Fast Attach 5 | . 1 . 2 . 2 Attach 5 | . . . 1 2 2 Detach 2 | . . . . 1 1 Swap . | . . . . . . Drop 7 | . 7 . . . . Fire 2 | . . . 2 . . Melee 1 | . . . . . 1 Ram 4 | . . . . . 4 Kick . | . . . . . . Crush . | . . . . . . Escape Stasis 36 | . . . . 36 . Rewire . | . . . . . . Trap . | . . . . . . Miscellaneous . | . . . . . . Route ------- -11/Scrapyard -10/Materials (discovered 2 exits: *Mat / [*Min]) -9/Materials (discovered 3 exits: *Mat x3) -8/Materials -8/Storage (discovered 2 exits: *Fac / Rec) -7/Factory (discovered 5 exits: Fac x4 / [*Low]) History --------- Turn | Location | Event 1 | -11/Scrapyard | Discovered new exit (range 0) 1 | -11/Scrapyard | Entered Materials 50 | -10/Materials | Discovered new exit (range 13) 62 | -10/Materials | Discovered new exit (range 13) 67 | -10/Materials | Entered another Materials area 67 | -9/Materials | Evolved 2 slots: Power x1, Propulsion x1 93 | -9/Materials | Identified exit to Materials 99 | -9/Materials | Entered another Materials area 99 | -8/Materials | Evolved 2 slots: Propulsion x1, Utility x1 173 | -8/Materials | Discovered new exit (range 13) 182 | -8/Materials | Entered Storage 184 | -8/Storage | Identified exit to Recycling 280 | -8/Storage | Discovered new exit (range 15) 287 | -8/Storage | Entered Factory 287 | -7/Factory | Evolved 2 slots: Propulsion x2 310 | -7/Factory | Lost 4 parts (1n2u1w) 312 | -7/Factory | Build established: Mutant 378 | -7/Factory | Identified exit to Factory 413 | -7/Factory | Core integrity fell below 50% 425 | -7/Factory | Discovered new exit (range 61) 441 | -7/Factory | Self-destructed Last Messages --------------- Found 4 level access points to Factory: (10,114) (177,149) (111,88) (57,179) Map updated. 00382_ F>=K0UCJ4NJH D>L%G9V0ZBZR=F 6Q3CWPN,F 00383_ Slammed into P-60 Hacker. 00398_ Manufacturing Mainframe disabled. 00403_ Slammed into P-60 Hacker. 00406_ Slammed into L-41 Fighter. 00411_ U-05 Engineer lays Concrete. 00418_ Mining Claw destroyed. 00425_ EXIT=FOUND 00425_ O-24 Administrator: "IFF HANDSHAKE FAILED. SECURING TERMINAL." 00431_ U-05 Engineer lays Concrete. 00432_ System corrupted: Component data lost. 00435_ ALERT: Hostiles spotted, dispatching reinforcements to Terminal F019. 00439_ Drone destroyed. Map ----- +----------------------------------------------------+ | | | """ """ """ " | | """ """ """ " | | """ """ """ " | | ####### ######### % ## | | ??????# # # ## """ """ """ " | | ??????# # "" # ## """ """ """ " | | ??????# + "" # ## """ """ """ " | | ??????# # "Y + ## | | ??????# # "" # ## """ """ """ " | | ??????# # "" # ## """ """ """ " | | ############## # ######## """ """ """ " | | # # # # # | | # # # # """ # """ """ """ | | # + # """"" # """ + """ """ """ | | # "" "" # # """"" # """ # """ """ """ " | | # "" "" # # """ # # | | #! """ """ + # # """?# | | # """ """ ##### # """"" # """?## # | | # """ """ #???# # """"" #! ""???# # | | # #???# # """ # ???# """"" !! # | | # #???# # ? # ?"????# """"" !] # | | # [ #???# ##+######???????# """ ! # | | # #???# p +???????# # | | ################## #???????# [ # | | ???????# # @ ######### # | | ???????# + | | ???????# ####################### " " # # | | ???????# #?????????????????????# " " ##### | | ???????###########?????????????????????#""G""#???? | | ???????????????????????????????????????#######???? | | ?????????????????????????????????????????????????? | | ?????????????????????????????????????????????????? | | ?????????????????????????????????????????????????? | | ?????????????????????????????????????????????????? | | ?????????????????????????????????????????????????? | | ?????????????????????????????????????????????????? | | ?????????????????????????????????????????????????? | | ?????????????????????????????????????????????????? | | ?????????????????????????????????????????????????? | | ?????????????????????????????????????????????????? | | ?????????????????????????????????????????????????? | | ?????????????????????????????????????????????????? | | ?????????????????????????????????????????????????? | | ?????????????????????????????????????????????????? | | ?????????????????????????????????????????????????? | | ?????????????????????????????????????????????????? | | ?????????????????????????????????????????????????? | | ?????????????????????????????????????????????????? | | ?????????????????????????????????????????????????? | +----------------------------------------------------+ Best States ------------- Heat Dissipation 34 Energy Generation 5 Energy Capacity 100 Matter Stores 288 Matter Capacity 300 Sight Range 22 Terrain Scan Range 14 Terrain Scan Density 10 Evasion (%) 62 Defensive Hacking 10 Item Schematics ----------------- None Robot Schematics ------------------ None Fabricated ------------ Nothing Alien Tech Used ----------------- None Achievements -------------- None Challenges ------------ None Game ------ Seed TrackerHardlightLog Manual? 0 Play Time 00:09:21 Cumulative 830.3 hours Start 2020.07.31 @ 21:49:16 End 2020.07.31 @ 21:56:24 Sessions 1 Manual Loads 0 Difficulty Rogue Special Mode None Game No. 248 Rogue 248 Adventurer 0 Explorer 0 Win Type - Total 45 Types 33/1/3/3/3/1/1 Lore% 97 Gallery% 99 Achievement% 95 Wizard Run 0 Options --------- ASCII 0 Keyboard 1 Movement Numpad Keybinds 0 Fullscreen 1 Font 18/SmallcapsGlow Map View 76x50 Tactical HUD 1 Map Filters NONE Filters NONE Steam 1 RUN: 6c022983-95ed-4009-bb3d-0bec63536e87